[Event "Late-Titled-Tuesday-Blitz-September-05-2023"]
[Site "Chess.com"]
[Date "2023.09.05"]
[Round "6"]
[White "Sulthankan"]
[Black "Verony64"]
[Result "1-0"]
[WhiteElo "2386"]
[BlackElo "2234"]
[TimeControl "180+1"]
[EndTime "15:08:22 PDT"]
[Termination "Sulthankan won by checkmate"]

1. d4 {[%clk 0:02:57.6]} 1... c5 {[%clk 0:02:57.6]} 2. dxc5 {[%clk 0:01:52]}
2... e6 {[%clk 0:02:55.6]} 3. Nf3 {[%clk 0:01:50.8]} 3... Bxc5 {[%clk 0:02:51]}
4. e3 {[%clk 0:01:51.1]} 4... Nf6 {[%clk 0:02:50.5]} 5. b3 {[%clk 0:01:51.6]}
5... Nc6 {[%clk 0:02:49.3]} 6. Bb2 {[%clk 0:01:52]} 6... O-O {[%clk 0:02:40.6]}
7. a3 {[%clk 0:01:51.7]} 7... Be7 {[%clk 0:02:39.5]} 8. Be2 {[%clk 0:01:49]}
8... a6 {[%clk 0:02:36.1]} 9. c4 {[%clk 0:01:42.2]} 9... b6 {[%clk 0:02:34.9]}
10. O-O {[%clk 0:01:38.2]} 10... Bb7 {[%clk 0:02:34.9]} 11. Nc3 {[%clk 0:01:39]}
11... d6 {[%clk 0:02:31]} 12. Rc1 {[%clk 0:01:36.4]} 12... Rc8 {[%clk
0:02:28.5]} 13. Re1 {[%clk 0:01:29.5]} 13... Re8 {[%clk 0:02:20.7]} 14. e4
{[%clk 0:01:27.8]} 14... Bf8 {[%clk 0:02:19.7]} 15. Bf1 {[%clk 0:01:26.9]} 15...
Nd7 {[%clk 0:01:55.3]} 16. Nd4 {[%clk 0:01:09.6]} 16... Nxd4 {[%clk 0:01:49.2]}
17. Qxd4 {[%clk 0:01:10]} 17... Ne5 {[%clk 0:01:49.8]} 18. Na4 {[%clk
0:01:03.4]} 18... Qg5 {[%clk 0:01:36]} 19. Kh1 {[%clk 0:00:54.6]} 19... Ng4
{[%clk 0:01:10.9]} 20. h3 {[%clk 0:00:46]} 20... Qh6 {[%clk 0:00:39.6]} 21. Nxb6
{[%clk 0:00:41.5]} 21... Rc7 {[%clk 0:00:39.8]} 22. Kg1 {[%clk 0:00:28.9]} 22...
d5 {[%clk 0:00:35.3]} 23. cxd5 {[%clk 0:00:23.5]} 23... Rxc1 {[%clk 0:00:28.4]}
24. Bxc1 {[%clk 0:00:24.4]} 24... Qf6 {[%clk 0:00:22.7]} 25. Qxf6 {[%clk
0:00:22.9]} 25... Nxf6 {[%clk 0:00:22.2]} 26. dxe6 {[%clk 0:00:13.4]} 26... Rxe6
{[%clk 0:00:20.9]} 27. Nc4 {[%clk 0:00:08.3]} 27... Nxe4 {[%clk 0:00:20.1]} 28.
Bd3 {[%clk 0:00:07.9]} 28... Nc5 {[%clk 0:00:16.7]} 29. Rxe6 {[%clk 0:00:07.8]}
29... fxe6 {[%clk 0:00:15.7]} 30. Bc2 {[%clk 0:00:07.5]} 30... Bd5 {[%clk
0:00:15.8]} 31. Nd2 {[%clk 0:00:06.5]} 31... g6 {[%clk 0:00:13.8]} 32. b4 {[%clk
0:00:07.1]} 32... Nd7 {[%clk 0:00:13.5]} 33. Nb1 {[%clk 0:00:07.6]} 33... Kf7
{[%clk 0:00:13.6]} 34. Nc3 {[%clk 0:00:08.2]} 34... Bg7 {[%clk 0:00:13]} 35.
Nxd5 {[%clk 0:00:07]} 35... exd5 {[%clk 0:00:13.9]} 36. Bd3 {[%clk 0:00:07.9]}
36... Nb8 {[%clk 0:00:12.9]} 37. Bf4 {[%clk 0:00:07.5]} 37... Nc6 {[%clk
0:00:12]} 38. Bxa6 {[%clk 0:00:08]} 38... d4 {[%clk 0:00:12.9]} 39. Bc1 {[%clk
0:00:07.1]} 39... Ke6 {[%clk 0:00:13.8]} 40. Bc4+ {[%clk 0:00:06.5]} 40... Kd6
{[%clk 0:00:13.6]} 41. Kf1 {[%clk 0:00:06.9]} 41... Ne5 {[%clk 0:00:13.7]} 42.
Bb3 {[%clk 0:00:06.4]} 42... Nc6 {[%clk 0:00:11.3]} 43. Bb2 {[%clk 0:00:06.1]}
43... Be5 {[%clk 0:00:10.1]} 44. Ke1 {[%clk 0:00:06.4]} 44... Ne7 {[%clk
0:00:09.6]} 45. Kd2 {[%clk 0:00:06.9]} 45... Nf5 {[%clk 0:00:09.6]} 46. Kd3
{[%clk 0:00:07]} 46... h5 {[%clk 0:00:09.7]} 47. a4 {[%clk 0:00:07.4]} 47... h4
{[%clk 0:00:09.3]} 48. a5 {[%clk 0:00:07.8]} 48... Kc6 {[%clk 0:00:09.7]} 49.
Ba4+ {[%clk 0:00:07.8]} 49... Kb7 {[%clk 0:00:09.6]} 50. b5 {[%clk 0:00:08.2]}
50... Bd6 {[%clk 0:00:09.8]} 51. Bb3 {[%clk 0:00:08.4]} 51... Bc5 {[%clk
0:00:08]} 52. Bd5+ {[%clk 0:00:08.5]} 52... Kc7 {[%clk 0:00:07.7]} 53. b6+
{[%clk 0:00:08.8]} 53... Bxb6 {[%clk 0:00:05.9]} 54. axb6+ {[%clk 0:00:08.9]}
54... Kxb6 {[%clk 0:00:06.8]} 55. Bxd4+ {[%clk 0:00:09.6]} 55... Kc7 {[%clk
0:00:04.4]} 56. Be5+ {[%clk 0:00:09.7]} 56... Kd7 {[%clk 0:00:04.2]} 57. Be4
{[%clk 0:00:08.7]} 57... Ke7 {[%clk 0:00:05.1]} 58. Bxf5 {[%clk 0:00:09.1]}
58... gxf5 {[%clk 0:00:05.6]} 59. Ke3 {[%clk 0:00:09.7]} 59... Ke6 {[%clk
0:00:06.5]} 60. Kf4 {[%clk 0:00:10.6]} 60... Kf7 {[%clk 0:00:05.9]} 61. Kxf5
{[%clk 0:00:11.5]} 61... Ke7 {[%clk 0:00:06.7]} 62. Bf6+ {[%clk 0:00:11.7]}
62... Kf7 {[%clk 0:00:07.6]} 63. Bxh4 {[%clk 0:00:12.6]} 63... Kg7 {[%clk
0:00:07.8]} 64. Bg3 {[%clk 0:00:13.5]} 64... Kh7 {[%clk 0:00:08.1]} 65. Be5
{[%clk 0:00:14.4]} 65... Kh6 {[%clk 0:00:08.4]} 66. g4 {[%clk 0:00:15.3]} 66...
Kh7 {[%clk 0:00:08.5]} 67. Ba1 {[%clk 0:00:16.2]} 67... Kh6 {[%clk 0:00:09.4]}
68. Bb2 {[%clk 0:00:15.8]} 68... Kh7 {[%clk 0:00:10.3]} 69. Bc1 {[%clk
0:00:16.7]} 69... Kg7 {[%clk 0:00:10.4]} 70. Bd2 {[%clk 0:00:17.6]} 70... Kh7
{[%clk 0:00:11.3]} 71. Be1 {[%clk 0:00:18.5]} 71... Kg7 {[%clk 0:00:12.1]} 72.
f4 {[%clk 0:00:19.4]} 72... Kh7 {[%clk 0:00:13]} 73. h4 {[%clk 0:00:20.2]} 73...
Kg7 {[%clk 0:00:13.9]} 74. h5 {[%clk 0:00:21.1]} 74... Kh7 {[%clk 0:00:14.3]}
75. g5 {[%clk 0:00:21.3]} 75... Kg7 {[%clk 0:00:15.2]} 76. g6 {[%clk 0:00:21.5]}
76... Kh6 {[%clk 0:00:15.3]} 77. Bc3 {[%clk 0:00:19.7]} 77... Kxh5 {[%clk
0:00:14.7]} 78. g7 {[%clk 0:00:20.4]} 78... Kh4 {[%clk 0:00:15.6]} 79. Be1+
{[%clk 0:00:19.7]} 79... Kh5 {[%clk 0:00:15]} 80. g8=Q {[%clk 0:00:20.6]} 80...
Kh6 {[%clk 0:00:15.4]} 81. Qg6# {[%clk 0:00:19]} 1-0

[Event "Late-Titled-Tuesday-Blitz-September-05-2023"]
[Site "Chess.com"]
[Date "2023.09.05"]
[Round "6"]
[White "Mariia89"]
[Black "TreinadorBR"]
[Result "0-1"]
[WhiteElo "1961"]
[BlackElo "2348"]
[TimeControl "180+1"]
[EndTime "15:08:29 PDT"]
[Termination "TreinadorBR won by resignation"]

1. d4 {[%clk 0:02:57.3]} 1... Nf6 {[%clk 0:02:59.2]} 2. Nf3 {[%clk 0:02:57.5]}
2... d5 {[%clk 0:02:58.5]} 3. c4 {[%clk 0:02:57.9]} 3... c6 {[%clk 0:02:58.3]}
4. e3 {[%clk 0:02:58]} 4... Bg4 {[%clk 0:02:57.9]} 5. Nc3 {[%clk 0:02:57.8]}
5... e6 {[%clk 0:02:57.3]} 6. Be2 {[%clk 0:02:57.8]} 6... Nbd7 {[%clk
0:02:57.7]} 7. O-O {[%clk 0:02:57.8]} 7... Bd6 {[%clk 0:02:58.3]} 8. h3 {[%clk
0:02:57.1]} 8... Bh5 {[%clk 0:02:58.2]} 9. c5 {[%clk 0:02:57.1]} 9... Bc7 {[%clk
0:02:57.6]} 10. b4 {[%clk 0:02:57.5]} 10... O-O {[%clk 0:02:57.8]} 11. b5 {[%clk
0:02:57]} 11... Bxf3 {[%clk 0:02:55]} 12. Bxf3 {[%clk 0:02:56]} 12... e5 {[%clk
0:02:55.5]} 13. dxe5 {[%clk 0:02:52.5]} 13... Nxe5 {[%clk 0:02:56.4]} 14. Bb2
{[%clk 0:02:46.9]} 14... Qe7 {[%clk 0:02:56.1]} 15. Rc1 {[%clk 0:02:42.6]} 15...
Nc4 {[%clk 0:02:55.3]} 16. Qb3 {[%clk 0:02:36.3]} 16... Nd2 {[%clk 0:02:52.5]}
17. Qc2 {[%clk 0:02:36.9]} 17... Nxf1 {[%clk 0:02:52.5]} 18. Rxf1 {[%clk
0:02:37.6]} 18... Qxc5 {[%clk 0:02:52.5]} 19. bxc6 {[%clk 0:02:37]} 19... bxc6
{[%clk 0:02:52.2]} 20. Qf5 {[%clk 0:02:34.1]} 20... Qd6 {[%clk 0:02:34.3]} 21.
g3 {[%clk 0:02:29.7]} 21... Rab8 {[%clk 0:02:32.2]} 22. Ba1 {[%clk 0:02:28.9]}
22... Qe6 {[%clk 0:02:24.7]} 23. Qg5 {[%clk 0:02:26.6]} 23... h6 {[%clk
0:02:23.2]} 24. Qh4 {[%clk 0:02:23.8]} 24... Bd6 {[%clk 0:02:18.4]} 25. Bg2
{[%clk 0:01:45.5]} 25... Rb4 {[%clk 0:02:17.4]} 26. g4 {[%clk 0:01:45]} 26...
Kh7 {[%clk 0:02:10]} 27. f3 {[%clk 0:00:37.2]} 27... Qxe3+ {[%clk 0:01:59.5]}
28. Kh1 {[%clk 0:00:37.4]} 28... Qf4 {[%clk 0:01:29.1]} 29. Kg1 {[%clk
0:00:27.2]} 29... Re8 {[%clk 0:01:19.8]} 30. a3 {[%clk 0:00:20.5]} 30... Rc4
{[%clk 0:01:13.3]} 31. Rd1 {[%clk 0:00:19.2]} 31... Re3 {[%clk 0:01:02.4]} 32.
Nb1 {[%clk 0:00:13.6]} 32... Bc5 {[%clk 0:00:50]} 33. Kf1 {[%clk 0:00:12.8]}
33... g5 {[%clk 0:00:45]} 34. Qf2 {[%clk 0:00:07.2]} 34... Rd3 {[%clk
0:00:42.3]} 35. Qe2 {[%clk 0:00:07]} 35... Re3 {[%clk 0:00:35.2]} 36. Qb2 {[%clk
0:00:05.6]} 36... d4 {[%clk 0:00:30]} 37. Nd2 {[%clk 0:00:05.3]} 37... Rcc3
{[%clk 0:00:16.3]} 38. Qb1+ {[%clk 0:00:05.6]} 38... Kg7 {[%clk 0:00:15]} 39.
Bxc3 {[%clk 0:00:05.2]} 39... dxc3 {[%clk 0:00:12.6]} 40. Ne4 {[%clk 0:00:05.9]}
40... Rxe4 {[%clk 0:00:08.3]} 41. Qd3 {[%clk 0:00:03.8]} 41... Rd4 {[%clk
0:00:07.9]} 42. Qe2 {[%clk 0:00:03.4]} 42... Rxd1+ {[%clk 0:00:07.5]} 43. Qxd1
{[%clk 0:00:04.1]} 43... Qe3 {[%clk 0:00:08.2]} 44. Qc2 {[%clk 0:00:03.2]} 44...
Qg1+ {[%clk 0:00:06.3]} 45. Ke2 {[%clk 0:00:03.4]} 45... Qxg2+ {[%clk
0:00:06.9]} 46. Kd3 {[%clk 0:00:04.3]} 46... Qxf3+ {[%clk 0:00:07]} 47. Kc4
{[%clk 0:00:04.2]} 47... Qd5+ {[%clk 0:00:07.6]} 48. Kxc3 {[%clk 0:00:03.4]}
48... Ne4+ {[%clk 0:00:08.2]} 49. Kb2 {[%clk 0:00:03.5]} 49... Bd4+ {[%clk
0:00:08.7]} 50. Kb1 {[%clk 0:00:03.7]} 50... Nc3+ {[%clk 0:00:08.5]} 51. Kc1
{[%clk 0:00:04.3]} 51... Qh1+ {[%clk 0:00:08]} 52. Kd2 {[%clk 0:00:04]} 52...
Qg2+ {[%clk 0:00:08.2]} 53. Kd3 {[%clk 0:00:04.9]} 53... Qxc2+ {[%clk
0:00:08.7]} 54. Kxc2 {[%clk 0:00:05]} 54... Nb5 {[%clk 0:00:09.6]} 55. Kb3
{[%clk 0:00:04.9]} 55... Nxa3 {[%clk 0:00:09.4]} 56. Kxa3 {[%clk 0:00:05.1]}
56... f5 {[%clk 0:00:09.8]} 57. Kb3 {[%clk 0:00:06]} 57... h5 {[%clk 0:00:10.7]}
58. gxf5 {[%clk 0:00:05.8]} 58... g4 {[%clk 0:00:10.8]} 59. hxg4 {[%clk
0:00:06]} 59... hxg4 {[%clk 0:00:11.7]} 60. Kc4 {[%clk 0:00:06.8]} 60... g3
{[%clk 0:00:12.2]} 61. Kxd4 {[%clk 0:00:07.3]} 61... g2 {[%clk 0:00:12.8]} 62.
Ke5 {[%clk 0:00:08.2]} 62... g1=Q {[%clk 0:00:13]} 63. f6+ {[%clk 0:00:09.1]}
63... Kf7 {[%clk 0:00:13.4]} 64. Kf5 {[%clk 0:00:09.9]} 64... Qc5+ {[%clk
0:00:12.9]} 0-1

[Event "Late-Titled-Tuesday-Blitz-September-05-2023"]
[Site "Chess.com"]
[Date "2023.09.05"]
[Round "6"]
[White "Firouzja2003"]
[Black "Durarbayli"]
[Result "1/2-1/2"]
[WhiteElo "3122"]
[BlackElo "2893"]
[TimeControl "180+1"]
[EndTime "15:08:31 PDT"]
[Termination "Game drawn - insufficient material"]

1. e4 {[%clk 0:03:00.9]} 1... c5 {[%clk 0:03:00.7]} 2. Nf3 {[%clk 0:03:00.9]}
2... d6 {[%clk 0:03:01.5]} 3. d4 {[%clk 0:02:57.8]} 3... cxd4 {[%clk 0:03:02.4]}
4. Nxd4 {[%clk 0:02:58.6]} 4... Nf6 {[%clk 0:03:03]} 5. Nc3 {[%clk 0:02:59.2]}
5... Nc6 {[%clk 0:03:03.6]} 6. Bg5 {[%clk 0:02:56.9]} 6... Qb6 {[%clk
0:03:03.6]} 7. Nb3 {[%clk 0:02:48]} 7... e6 {[%clk 0:03:03]} 8. Qd2 {[%clk
0:02:46.8]} 8... a6 {[%clk 0:03:02.9]} 9. O-O-O {[%clk 0:02:45.7]} 9... Be7
{[%clk 0:03:03.5]} 10. f3 {[%clk 0:02:38.1]} 10... O-O {[%clk 0:03:03.7]} 11. h4
{[%clk 0:02:35.4]} 11... Rd8 {[%clk 0:03:04]} 12. Kb1 {[%clk 0:02:28.6]} 12...
Qc7 {[%clk 0:02:56]} 13. g4 {[%clk 0:01:51.6]} 13... b5 {[%clk 0:02:56]} 14. Be3
{[%clk 0:01:47.4]} 14... d5 {[%clk 0:02:50.7]} 15. exd5 {[%clk 0:00:58.9]} 15...
b4 {[%clk 0:02:48.7]} 16. Ne4 {[%clk 0:00:41.5]} 16... Nxd5 {[%clk 0:02:46.2]}
17. Bd3 {[%clk 0:00:37.1]} 17... Ne5 {[%clk 0:02:35.3]} 18. Bf4 {[%clk
0:00:34.7]} 18... Nxf3 {[%clk 0:02:27.3]} 19. Bxc7 {[%clk 0:00:34.8]} 19...
Nxd2+ {[%clk 0:02:28]} 20. Rxd2 {[%clk 0:00:35.2]} 20... Nxc7 {[%clk 0:02:28.9]}
21. g5 {[%clk 0:00:35.5]} 21... Bb7 {[%clk 0:02:24.7]} 22. Rf2 {[%clk
0:00:35.3]} 22... Nd5 {[%clk 0:02:07.8]} 23. Na5 {[%clk 0:00:35.4]} 23... Rd7
{[%clk 0:02:06.3]} 24. h5 {[%clk 0:00:32.3]} 24... Rf8 {[%clk 0:01:58.8]} 25.
Nxb7 {[%clk 0:00:25.5]} 25... Rxb7 {[%clk 0:01:59.7]} 26. Bxa6 {[%clk
0:00:20.9]} 26... Rc7 {[%clk 0:01:56.1]} 27. Rhf1 {[%clk 0:00:15.3]} 27... Ne3
{[%clk 0:01:49.7]} 28. Re1 {[%clk 0:00:14.8]} 28... Rd8 {[%clk 0:01:44.5]} 29.
Bd3 {[%clk 0:00:13.7]} 29... Nf5 {[%clk 0:01:41]} 30. g6 {[%clk 0:00:13.4]}
30... hxg6 {[%clk 0:01:40.3]} 31. hxg6 {[%clk 0:00:14.3]} 31... fxg6 {[%clk
0:01:40.1]} 32. Rg2 {[%clk 0:00:13.6]} 32... Kf7 {[%clk 0:01:31]} 33. Reg1
{[%clk 0:00:13.7]} 33... Nh4 {[%clk 0:01:31.7]} 34. Rf2+ {[%clk 0:00:13.2]}
34... Nf5 {[%clk 0:01:30.8]} 35. Rfg2 {[%clk 0:00:13.3]} 35... Nh4 {[%clk
0:01:27.2]} 36. Ng5+ {[%clk 0:00:12.6]} 36... Bxg5 {[%clk 0:01:26.8]} 37. Rxg5
{[%clk 0:00:13.5]} 37... Kf6 {[%clk 0:01:10.3]} 38. R5g4 {[%clk 0:00:13]} 38...
g5 {[%clk 0:01:07.1]} 39. Rxb4 {[%clk 0:00:10.1]} 39... Rd5 {[%clk 0:00:50.6]}
40. Rf1+ {[%clk 0:00:10.1]} 40... Nf5 {[%clk 0:00:50]} 41. a4 {[%clk 0:00:10.3]}
41... g6 {[%clk 0:00:45.8]} 42. b3 {[%clk 0:00:09.1]} 42... Rh7 {[%clk
0:00:45.7]} 43. Rb5 {[%clk 0:00:08.3]} 43... g4 {[%clk 0:00:44.2]} 44. Rb4
{[%clk 0:00:05.9]} 44... Kg5 {[%clk 0:00:39.9]} 45. Rg1 {[%clk 0:00:06.3]} 45...
Rh4 {[%clk 0:00:37.6]} 46. Re4 {[%clk 0:00:06]} 46... e5 {[%clk 0:00:35.3]} 47.
b4 {[%clk 0:00:04.8]} 47... g3 {[%clk 0:00:30.8]} 48. a5 {[%clk 0:00:03.9]}
48... Rxe4 {[%clk 0:00:29.8]} 49. Bxe4 {[%clk 0:00:04.8]} 49... Rd4 {[%clk
0:00:30.7]} 50. Bxf5 {[%clk 0:00:05.3]} 50... Rxb4+ {[%clk 0:00:30.9]} 51. Ka2
{[%clk 0:00:05.2]} 51... gxf5 {[%clk 0:00:17.7]} 52. Rxg3+ {[%clk 0:00:05.8]}
52... Kf6 {[%clk 0:00:18.1]} 53. a6 {[%clk 0:00:04.4]} 53... Rb8 {[%clk
0:00:17.8]} 54. Rb3 {[%clk 0:00:03]} 54... Ra8 {[%clk 0:00:17.9]} 55. Rb6+
{[%clk 0:00:03.8]} 55... Kg5 {[%clk 0:00:18.3]} 56. Kb3 {[%clk 0:00:03.4]} 56...
f4 {[%clk 0:00:18.9]} 57. Kc4 {[%clk 0:00:03.7]} 57... f3 {[%clk 0:00:19.1]} 58.
Kd3 {[%clk 0:00:04]} 58... Rf8 {[%clk 0:00:12.5]} 59. Rb1 {[%clk 0:00:04.1]}
59... Kf4 {[%clk 0:00:12.5]} 60. a7 {[%clk 0:00:01.6]} 60... Rd8+ {[%clk
0:00:13.1]} 61. Kc3 {[%clk 0:00:01.7]} 61... Ra8 {[%clk 0:00:14]} 62. Kd3 {[%clk
0:00:01.4]} 62... Rxa7 {[%clk 0:00:13.9]} 63. Rb4+ {[%clk 0:00:01.4]} 63... Kg3
{[%clk 0:00:12.5]} 64. Rb8 {[%clk 0:00:01.7]} 64... Kf2 {[%clk 0:00:09.7]} 65.
Ke4 {[%clk 0:00:01.6]} 65... Ke2 {[%clk 0:00:07.8]} 66. c4 {[%clk 0:00:02.1]}
66... Ra2 {[%clk 0:00:07]} 67. Kxe5 {[%clk 0:00:02.4]} 67... f2 {[%clk
0:00:07.5]} 68. Rf8 {[%clk 0:00:03]} 68... f1=Q {[%clk 0:00:05]} 69. Rxf1 {[%clk
0:00:03.9]} 69... Kxf1 {[%clk 0:00:05.8]} 70. c5 {[%clk 0:00:03.9]} 70... Ke2
{[%clk 0:00:06.5]} 71. c6 {[%clk 0:00:03.9]} 71... Kd3 {[%clk 0:00:06.8]} 72. c7
{[%clk 0:00:04]} 72... Ra8 {[%clk 0:00:07]} 73. Kd6 {[%clk 0:00:04.4]} 73... Kc4
{[%clk 0:00:07.7]} 74. Kd7 {[%clk 0:00:05.1]} 74... Kc5 {[%clk 0:00:08.1]} 75.
c8=Q+ {[%clk 0:00:05.3]} 75... Rxc8 {[%clk 0:00:08.8]} 76. Kxc8 {[%clk
0:00:06.2]} 1/2-1/2

[Event "Late-Titled-Tuesday-Blitz-September-05-2023"]
[Site "Chess.com"]
[Date "2023.09.05"]
[Round "6"]
[White "Chessbard1972"]
[Black "GMForgacs"]
[Result "0-1"]
[WhiteElo "2489"]
[BlackElo "2407"]
[TimeControl "180+1"]
[EndTime "15:08:34 PDT"]
[Termination "GMForgacs won by checkmate"]

1. e4 {[%clk 0:03:00.9]} 1... e5 {[%clk 0:02:54.4]} 2. Nf3 {[%clk 0:02:59.5]}
2... Nc6 {[%clk 0:02:53.8]} 3. Bc4 {[%clk 0:02:59.5]} 3... Nf6 {[%clk 0:02:54]}
4. Ng5 {[%clk 0:02:59.5]} 4... d5 {[%clk 0:02:54]} 5. exd5 {[%clk 0:03:00.1]}
5... Na5 {[%clk 0:02:54.5]} 6. Bb5+ {[%clk 0:03:00.6]} 6... c6 {[%clk
0:02:54.9]} 7. dxc6 {[%clk 0:03:01.3]} 7... bxc6 {[%clk 0:02:55.8]} 8. Bd3
{[%clk 0:03:01.6]} 8... Nd5 {[%clk 0:02:48.4]} 9. Ne4 {[%clk 0:02:52.6]} 9...
Nf4 {[%clk 0:02:42.2]} 10. Bf1 {[%clk 0:02:51.2]} 10... f5 {[%clk 0:02:37]} 11.
Nec3 {[%clk 0:02:47]} 11... Bc5 {[%clk 0:02:35]} 12. g3 {[%clk 0:02:42.3]} 12...
Ne6 {[%clk 0:02:24.8]} 13. Bg2 {[%clk 0:02:40.7]} 13... O-O {[%clk 0:02:23]} 14.
O-O {[%clk 0:02:39.7]} 14... f4 {[%clk 0:02:05.9]} 15. Ne4 {[%clk 0:02:36.3]}
15... Bb6 {[%clk 0:02:03.5]} 16. Nbc3 {[%clk 0:02:33.6]} 16... Ng5 {[%clk
0:01:57]} 17. Nxg5 {[%clk 0:02:29.9]} 17... Qxg5 {[%clk 0:01:57.9]} 18. Ne4
{[%clk 0:02:29.6]} 18... Qg6 {[%clk 0:01:52.1]} 19. d3 {[%clk 0:02:27.7]} 19...
Bg4 {[%clk 0:01:51.2]} 20. Bf3 {[%clk 0:02:08.7]} 20... Bh3 {[%clk 0:01:15.1]}
21. Re1 {[%clk 0:02:00.4]} 21... fxg3 {[%clk 0:01:03]} 22. hxg3 {[%clk
0:01:59.5]} 22... Rf7 {[%clk 0:00:59.6]} 23. Bg2 {[%clk 0:01:55.7]} 23... Bg4
{[%clk 0:00:55.7]} 24. Qd2 {[%clk 0:01:50.4]} 24... Raf8 {[%clk 0:00:54.8]} 25.
Rf1 {[%clk 0:01:49.4]} 25... h6 {[%clk 0:00:45.4]} 26. b4 {[%clk 0:01:44.3]}
26... Nb7 {[%clk 0:00:45.1]} 27. Bb2 {[%clk 0:01:43.1]} 27... Bf3 {[%clk
0:00:20.4]} 28. Bxf3 {[%clk 0:01:17.7]} 28... Rxf3 {[%clk 0:00:21.3]} 29. Kg2
{[%clk 0:01:17.8]} 29... Qf5 {[%clk 0:00:18.4]} 30. c4 {[%clk 0:01:09.1]} 30...
Nd8 {[%clk 0:00:09.2]} 31. c5 {[%clk 0:01:07.6]} 31... Bc7 {[%clk 0:00:09.9]}
32. Rae1 {[%clk 0:01:04.3]} 32... Ne6 {[%clk 0:00:10.3]} 33. Re3 {[%clk
0:00:42]} 33... Qg4 {[%clk 0:00:06.6]} 34. Rxf3 {[%clk 0:00:34.4]} 34... Qxf3+
{[%clk 0:00:07.5]} 35. Kg1 {[%clk 0:00:33.6]} 35... Rf5 {[%clk 0:00:05.3]} 36.
Qd1 {[%clk 0:00:28.7]} 36... Qxd1 {[%clk 0:00:04.5]} 37. Rxd1 {[%clk 0:00:28.2]}
37... Nd4 {[%clk 0:00:05]} 38. Bxd4 {[%clk 0:00:27.5]} 38... exd4 {[%clk
0:00:05.7]} 39. Re1 {[%clk 0:00:26.8]} 39... Rf3 {[%clk 0:00:05.7]} 40. Rd1
{[%clk 0:00:24.7]} 40... g5 {[%clk 0:00:06.4]} 41. Kg2 {[%clk 0:00:24.3]} 41...
g4 {[%clk 0:00:06.9]} 42. a4 {[%clk 0:00:23]} 42... Kf7 {[%clk 0:00:07]} 43. b5
{[%clk 0:00:22.4]} 43... cxb5 {[%clk 0:00:07.8]} 44. axb5 {[%clk 0:00:22.3]}
44... Ke6 {[%clk 0:00:07.9]} 45. Ra1 {[%clk 0:00:18.8]} 45... Bb8 {[%clk
0:00:07.4]} 46. Ra6+ {[%clk 0:00:16.6]} 46... Kd5 {[%clk 0:00:07.6]} 47. b6
{[%clk 0:00:15.3]} 47... axb6 {[%clk 0:00:07.1]} 48. Rxb6 {[%clk 0:00:15.6]}
48... Be5 {[%clk 0:00:06.8]} 49. Rxh6 {[%clk 0:00:14.3]} 49... Rxd3 {[%clk
0:00:07.2]} 50. Nf6+ {[%clk 0:00:13.3]} 50... Bxf6 {[%clk 0:00:07.5]} 51. Rxf6
{[%clk 0:00:13.2]} 51... Kxc5 {[%clk 0:00:08.4]} 52. Rf4 {[%clk 0:00:13.2]}
52... Rd1 {[%clk 0:00:08.3]} 53. Rxg4 {[%clk 0:00:13.1]} 53... d3 {[%clk
0:00:09.1]} 54. Rg8 {[%clk 0:00:13.1]} 54... d2 {[%clk 0:00:08.7]} 55. Rd8
{[%clk 0:00:13.3]} 55... Kc4 {[%clk 0:00:09.4]} 56. g4 {[%clk 0:00:13.6]} 56...
Kc3 {[%clk 0:00:09.6]} 57. g5 {[%clk 0:00:13.6]} 57... Ra1 {[%clk 0:00:08.6]}
58. f4 {[%clk 0:00:12.4]} 58... Ra4 {[%clk 0:00:08.3]} 59. Kf3 {[%clk
0:00:11.9]} 59... Rd4 {[%clk 0:00:08.6]} 60. Rc8+ {[%clk 0:00:11.8]} 60... Kd3
{[%clk 0:00:08.4]} 61. g6 {[%clk 0:00:10]} 61... d1=Q+ {[%clk 0:00:08.6]} 62.
Kg3 {[%clk 0:00:10]} 62... Qg1+ {[%clk 0:00:08.8]} 63. Kh4 {[%clk 0:00:10.2]}
63... Rxf4+ {[%clk 0:00:08.5]} 64. Kh5 {[%clk 0:00:09.8]} 64... Qg4+ {[%clk
0:00:08.3]} 65. Kh6 {[%clk 0:00:10.1]} 65... Qh4+ {[%clk 0:00:08.2]} 66. Kg7
{[%clk 0:00:10.5]} 66... Qe7+ {[%clk 0:00:08.8]} 67. Kg8 {[%clk 0:00:08.8]}
67... Qe6+ {[%clk 0:00:09.2]} 68. Kg7 {[%clk 0:00:08.7]} 68... Qxc8 {[%clk
0:00:09.2]} 69. Kh7 {[%clk 0:00:08.6]} 69... Qd7+ {[%clk 0:00:08.9]} 70. g7
{[%clk 0:00:08.8]} 70... Rf7 {[%clk 0:00:08.5]} 71. Kh8 {[%clk 0:00:07.9]} 71...
Qh3+ {[%clk 0:00:08.5]} 72. Kg8 {[%clk 0:00:07]} 72... Rxg7+ {[%clk 0:00:09]}
73. Kxg7 {[%clk 0:00:07.5]} 73... Qe6 {[%clk 0:00:09.6]} 74. Kh7 {[%clk
0:00:07.3]} 74... Qf6 {[%clk 0:00:09.6]} 75. Kg8 {[%clk 0:00:07.8]} 75... Qe7
{[%clk 0:00:10.5]} 76. Kh8 {[%clk 0:00:07.5]} 76... Ke4 {[%clk 0:00:11.4]} 77.
Kg8 {[%clk 0:00:04.6]} 77... Kf5 {[%clk 0:00:12.3]} 78. Kh8 {[%clk 0:00:05]}
78... Kg6 {[%clk 0:00:13.2]} 79. Kg8 {[%clk 0:00:05.5]} 79... Qg7# {[%clk
0:00:14.1]} 0-1